bitfinex-derivatives/quotes_SOLF0:USTF0_20251125
["timestamp","ask_amount","ask_price","bid_price","bid_amount"]
[1764090002024,3.05671177,136.0,135.96,6.6237]
[1764090002413,3.05671177,136.0,135.95,29.45746344]
[1764090002616,0.04671177,136.0,135.98,6.6227]
[1764090002815,0.04671177,136.0,135.99,4.25746344]
[1764090003326,3.01,136.06,135.99,108.75426344]
[1764090003520,3.01,136.06,136.01,4.25746344]
[1764090004322,0.05288487,136.05,136.02,0.04669185]
[1764090004522,3.06288487,136.05,136.02,0.04669185]
[1764090006626,3.06288487,136.05,136.02,6.66769185]
[1764090010027,0.05288487,136.05,136.03,6.6205]
[1764090010628,3.06288487,136.05,136.03,6.6205]
[1764090010933,0.05288487,136.05,136.03,6.6205]
[1764090011635,3.06288487,136.05,136.03,6.6205]
[1764090011823,3.06288487,136.05,136.02,0.04669185]
[1764090012529,3.06288487,136.05,136.02,6.66769185]
[1764090012927,3.06288487,136.05,136.02,0.04669185]
[1764090013135,3.06288487,136.05,135.95,107.30246344]
[1764090013321,3.01,136.05,135.95,107.30246344]
[1764090013526,3.01,136.05,136.0,6.6217]
[1764090013727,3.01,136.05,135.97,107.28686344]
[1764090013728,3.01,136.05,135.99,4.25746344]
[1764090014028,3.0625832,136.03,135.99,4.25746344]
[1764090014230,0.05049223,136.02,136.01,6.6215]
[1764090015031,3.01,136.09,136.05,6.6192]
[1764090015220,3.01,136.09,135.98,103.0229]
[1764090015428,3.01,136.09,136.0,4.25746344]
[1764090015922,3.01,136.14,136.04,107.23156344]
[1764090016226,3.01,136.24,136.15,102.8963]
[1764090016421,3.01,136.2,136.15,102.8963]
[1764090016632,3.01,136.2,136.13,22.55584895]
[1764090016834,3.01,136.2,136.11,6.6165]
[1764090017024,3.01,136.2,136.11,4.25746344]
[1764090017432,3.09,136.26,136.17,4.25746344]
[1764090017635,3.09,136.27,136.24,1.76949915]
[1764090017932,0.05021488,136.27,136.24,4.25746344]
[1764090018139,3.14021488,136.27,136.21,4.25746344]
[1764090018326,0.05582096,136.25,136.23,4.25746344]
[1764090018836,3.09,136.34,136.26,102.8128]
[1764090019046,3.09,136.34,136.31,1.76739422]
[1764090019331,3.09,136.34,136.24,36.52824727]
[1764090019936,3.13882655,136.3,136.28,0.05102349]
[1764090020142,3.13882655,136.3,136.2,114.10464727]
[1764090020143,3.09,136.3,136.2,11.24824727]
[1764090020440,3.09,136.3,136.21,25.28]
[1764090021040,0.0514767,136.27,136.2,36.52824727]
[1764090021236,3.1414767,136.27,136.17,11.24824727]
[1764090021427,3.142699,136.23,136.12,11.24824727]
[1764090021630,0.05130297,136.19,136.13,25.3]
[1764090022035,0.05130297,136.19,136.13,31.9154]
[1764090023839,0.05130297,136.19,136.15,102.896]
[1764090024034,0.05130297,136.19,136.15,11.24824727]
[1764090024238,0.05130297,136.19,136.16,6.6139]
[1764090025337,0.05130297,136.19,136.17,6.6134]
[1764090025551,3.09,136.26,136.17,11.24824727]
[1764090025841,3.09,136.26,136.17,25.28]
[1764090026046,3.09,136.23,136.12,11.24824727]
[1764090026240,3.09,136.23,136.11,128.2229]
[1764090026545,0.05492545,136.18,136.16,0.05120589]
[1764090026839,3.14223939,136.18,136.16,0.05120589]
[1764090027236,3.09,136.17,136.1,25.3]
[1764090028239,3.14074793,136.15,136.06,190.9161958]
[1764090028438,3.14045561,136.12,136.06,179.66794853]
[1764090028844,3.14045561,136.12,136.03,6.6204]
[1764090029040,0.0538895,136.09,136.04,25.3]
[1764090029444,3.1438895,136.09,136.02,11.24824727]
[1764090029653,3.1438895,136.09,135.99,114.26244727]
[1764090029847,0.05378294,136.05,136.0,25.3]
[1764090030340,0.05378294,136.05,136.0,31.9217]
[1764090030537,0.05378294,136.05,136.03,102.986]
[1764090030747,3.09,136.12,136.05,102.9721]
[1764090031048,3.09,136.12,136.05,128.2921]
[1764090031245,3.09,136.12,136.05,25.32]
[1764090031636,3.09,136.12,136.05,31.9392]
[1764090031840,3.1424016,136.1,136.07,0.0542525]
[1764090032043,0.05551453,136.1,136.07,0.04745842]
[1764090032648,0.05551453,136.1,136.07,6.52258375]
[1764090033149,0.05551453,136.1,136.08,6.6179]
[1764090033756,0.05551453,136.1,136.08,109.5665]
[1764090034156,0.05551453,136.1,136.09,25.32]
[1764090034658,3.09,136.18,136.11,6.6163]
[1764090035557,0.04847842,136.16,136.13,0.05586227]
[1764090036159,0.04847842,136.16,136.14,6.6149]
[1764090037552,3.13847842,136.16,136.13,25.37586227]
[1764090037750,0.04847842,136.16,136.13,25.37586227]
[1764090040359,0.04847842,136.16,136.13,0.05586227]
[1764090040561,3.09,136.15,136.13,0.05586227]
[1764090040866,3.09,136.15,136.05,25.32]
[1764090041057,3.09,136.12,136.04,6.6198]
[1764090041253,3.09,136.12,136.03,134.77852533]
[1764090041665,6.616,136.13,136.03,134.77852533]
[1764090041666,3.14130859,136.09,136.06,0.05138551]
[1764090044359,0.05130859,136.09,136.06,0.05138551]
[1764090044875,0.05130859,136.09,136.07,6.6184]
[1764090045169,0.05130859,136.09,136.07,13.09352533]
[1764090045671,0.05130859,136.09,136.07,38.43352533]
[1764090047465,3.09,136.15,136.13,6.6156]
[1764090047866,3.09,136.15,136.07,109.42542533]
[1764090048174,3.09,136.15,136.09,6.6175]
[1764090048358,3.09,136.15,136.08,25.34]
[1764090048671,0.04870497,136.13,136.11,6.6165]
[1764090048871,0.05589199,136.13,136.11,102.97339238]
[1764090049471,0.05589199,136.13,136.11,0.04779238]
[1764090049872,0.05589199,136.13,136.12,25.34]
[1764090052073,0.05589199,136.13,136.11,6.66429238]
[1764090052273,0.05589199,136.13,136.11,32.00429238]
[1764090053578,2.94,136.2,136.14,6.6152]
[1764090053972,2.94,136.2,136.15,25.34]
[1764090054172,2.94,136.2,136.16,6.6141]
[1764090054872,0.04913725,136.19,136.17,0.05336237]
[1764090055079,2.98913725,136.19,136.17,0.05336237]
[1764090057475,0.04913725,136.19,136.17,0.05336237]
[1764090059176,0.04913725,136.19,136.17,6.66696237]
[1764090059376,0.04913725,136.19,136.18,25.32]
[1764090060080,0.04913725,136.19,136.17,13.1420877]
[1764090060387,2.92,136.25,136.18,128.1914]
[1764090060681,2.92,136.29,136.2,6.47512533]
[1764090060876,2.92,136.27,136.17,25.32]
[1764090061083,2.92,136.24,136.14,6.47512533]
[1764090061382,102.8238,136.25,136.18,0.05446409]
[1764090061383,2.92,136.19,136.18,0.05446409]
[1764090061579,2.92,136.19,136.09,102.9381]
[1764090061776,2.92,136.19,136.1,25.32]
[1764090062084,2.92,136.19,136.11,25.32]
[1764090062676,0.0496379,136.16,136.14,0.05252439]
[1764090063073,2.9696379,136.16,136.14,0.05252439]
[1764090063487,0.0496379,136.16,136.14,0.05252439]
[1764090063683,2.9696379,136.16,136.14,0.05252439]
[1764090064186,2.9696379,136.16,136.09,13.09262533]
[1764090064387,2.9696379,136.16,136.09,6.47512533]
[1764090064590,2.92,136.15,136.09,13.09262533]
[1764090064884,2.92,136.15,136.03,102.9846]
[1764090065075,0.04748451,136.1,136.08,0.04991585]
[1764090065275,2.96826993,136.1,136.08,0.04991585]
[1764090066190,0.04826993,136.1,136.08,0.04991585]
[1764090066982,2.96826993,136.1,136.08,0.04991585]
[1764090067186,2.96826993,136.1,136.02,6.47512533]
[1764090067785,2.96826993,136.1,136.03,6.6203]
[1764090068286,2.96826993,136.1,136.05,0.053279]
[1764090068487,0.04826993,136.1,136.05,6.52840433]
[1764090068688,0.04826993,136.1,136.06,102.9631]
[1764090068893,0.04826993,136.1,136.06,128.3031]
[1764090069092,0.04826993,136.1,136.08,6.6179]
[1764090069982,0.04826993,136.1,136.08,13.09302533]
[1764090071091,2.96826993,136.1,136.08,6.47512533]
[1764090071283,2.96826993,136.1,136.07,25.36]
[1764090071690,0.04826993,136.1,136.07,25.36]
[1764090071890,0.04826993,136.1,136.07,31.9785]
[1764090073194,0.04826993,136.1,136.08,6.618]
[1764090073695,2.92,136.16,136.11,6.6167]
[1764090073885,2.92,136.16,136.09,102.9419]
[1764090073886,2.92,136.16,136.09,102.9386]
[1764090074082,2.92,136.2,136.11,6.47512533]
[1764090074384,2.92,136.2,136.14,6.47512533]
[1764090074693,0.04722124,136.18,136.16,0.04847139]
[1764090074991,0.05108084,136.18,136.16,0.04642189]
[1764090076691,2.97108084,136.18,136.16,0.04642189]
[1764090077082,2.97108084,136.18,136.11,6.47512533]
[1764090077083,2.92,136.17,136.11,25.36]
[1764090077288,2.92,136.17,136.08,6.47512533]
[1764090077690,3.06,136.15,136.07,25.36]
[1764090077886,3.06,136.15,136.06,31.979]
[1764090078192,3.06,136.11,136.09,0.04788257]
[1764090078697,3.06,136.18,136.1,6.47512533]
[1764090078889,3.06,136.18,136.11,25.36]
[1764090079790,0.04666146,136.16,136.13,0.05072197]
[1764090079993,0.04666146,136.16,136.13,6.5258473]
[1764090080299,0.04666146,136.16,136.13,109.4345473]
[1764090080500,0.04666146,136.16,136.14,6.6151]
[1764090081096,0.04666146,136.16,136.14,31.9751]
[1764090081494,0.04666146,136.16,136.13,6.5258473]
[1764090081698,0.04666146,136.16,136.13,31.8858473]
[1764090082390,0.04666146,136.16,136.14,6.6151]
[1764090084402,0.04666146,136.16,136.13,0.05072197]
[1764090085802,0.04666146,136.16,136.14,13.09012533]
[1764090087295,3.10666146,136.16,136.13,0.05072197]
[1764090089602,3.06,136.14,136.08,6.47512533]
[1764090089905,3.06,136.14,136.03,133.99987286]
[1764090089906,3.06,136.14,136.05,6.47512533]
[1764090090101,6.6168,136.11,136.05,31.83512533]
[1764090090307,3.06,136.1,136.04,6.6197]
[1764090090507,3.06,136.16,136.05,6.47512533]
[1764090090702,3.06,136.13,136.07,6.6186]
[1764090090904,0.04740953,136.11,136.09,0.0517935]
[1764090091797,0.04740953,136.11,136.09,6.6693935]
[1764090092404,0.04740953,136.11,136.09,32.0493935]
[1764090092604,3.06,136.16,136.09,128.3695935]
[1764090092803,3.06,136.19,136.1,102.934]
[1764090093001,3.06,136.18,136.1,102.934]
[1764090093197,3.06,136.18,136.11,114.19273499]
[1764090093403,3.06,136.22,136.12,102.9189]
[1764090093606,0.05179355,136.18,136.16,0.05525879]
[1764090093810,3.11179355,136.18,136.16,0.05525879]
[1764090095097,9.72519355,136.18,136.16,0.05525879]
[1764090095306,3.06,136.17,136.11,6.6163]
[1764090096011,9.674,136.17,136.11,6.6163]
[1764090096210,3.06,136.16,136.13,0.05297337]
[1764090103919,9.6743,136.16,136.13,0.05297337]
[1764090104413,3.06,136.15,136.13,0.05297337]
[1764090105508,3.06,136.14,136.05,11.26863499]
[1764090105708,3.06,136.14,136.05,36.62863499]
[1764090105908,3.06,136.14,136.08,102.9461]
[1764090106105,3.06,136.17,136.08,102.9461]
[1764090106505,0.05397029,136.14,136.08,102.9461]
[1764090106915,0.05397029,136.14,136.08,114.21473499]
[1764090107314,0.05397029,136.14,136.12,6.6162]
[1764090108120,0.05397029,136.14,136.1,6.6167]
[1764090108514,0.05397029,136.14,136.08,114.21473499]
[1764090109725,3.12397029,136.14,136.08,36.60863499]
[1764090110108,3.12397029,136.14,136.1,6.6168]
[1764090110421,3.12397029,136.14,136.08,36.60863499]
[1764090111624,3.12397029,136.14,136.08,43.22633499]
[1764090111922,3.12397029,136.14,136.08,11.26863499]
[1764090112222,9.73937029,136.14,136.09,31.9574]
[1764090112525,9.73937029,136.14,136.09,6.6174]
[1764090112713,3.07,136.13,136.09,31.9574]
[1764090114117,3.07,136.13,136.09,6.6174]
[1764090114319,3.07,136.12,136.03,17.77597286]
[1764090114521,0.05321417,136.09,136.05,25.34]
[1764090115232,0.05321417,136.09,136.05,139.57773499]
[1764090115915,0.05321417,136.09,136.08,6.6181]
[1764090116116,0.05321417,136.09,136.08,25.34]
[1764090116319,3.12321417,136.09,136.05,25.34]
[1764090116625,3.12321417,136.09,136.05,31.9596]
[1764090116829,3.12321417,136.09,136.05,25.34]
[1764090117722,3.12321417,136.09,136.06,6.6191]
[1764090117923,3.12321417,136.09,136.01,17.77597286]
[1764090118130,6.6188,136.07,135.99,25.34]
[1764090118425,3.12004749,136.04,135.99,25.34]
[1764090119020,3.12004749,136.04,135.99,6.6223]
[1764090119221,3.12004749,136.04,135.96,25.34]
[1764090119622,3.12004749,136.04,135.95,103.0434]
[1764090119830,3.199133,136.01,135.96,31.9837]
[1764090120131,3.199133,136.01,135.96,25.36]
[1764090120425,3.199133,136.01,135.9,120.85557286]
[1764090120632,3.15,136.01,135.9,128.4396]
[1764090120831,0.05468092,135.97,135.9,128.4396]
[1764090121131,3.20468092,135.97,135.89,25.36]
[1764090121526,3.20468092,135.97,135.88,21.94356931]
[1764090121829,3.19947221,135.94,135.85,25.36]
[1764090122016,3.2033794,135.91,135.84,6.6297]
[1764090122220,3.2033794,135.91,135.8,103.1587]
[1764090122516,0.04643027,135.87,135.82,103.1457]
[1764090122929,0.04643027,135.87,135.8,12.54941229]
[1764090123130,0.04643027,135.87,135.81,25.38]
[1764090123322,0.04643027,135.87,135.82,6.6306]
[1764090124028,0.04643027,135.87,135.83,6.63]
[1764090124418,0.04643027,135.87,135.84,6.6295]
[1764090124624,0.04643027,135.87,135.84,103.1312]
[1764090124833,0.04643027,135.87,135.85,128.5023]
[1764090125330,0.04643027,135.87,135.85,6.629]
[1764090125535,0.04643027,135.87,135.85,135.1325]
[1764090126032,3.15,135.96,135.89,6.6274]
[1764090126241,3.15,135.96,135.89,25.38]
[1764090126535,3.15,135.96,135.88,25.38]
[1764090127031,3.20314874,135.93,135.91,0.04850117]
[1764090127330,3.20366847,135.93,135.91,0.04850117]
[1764090127525,0.05366847,135.93,135.91,0.04850117]
[1764090130528,0.05366847,135.93,135.91,6.67460117]
[1764090130727,0.05366847,135.93,135.91,0.04850117]
[1764090131131,0.05366847,135.93,135.91,109.75220117]
[1764090131325,0.00366847,135.93,135.91,109.75220117]
[1764090132134,0.00366847,135.93,135.92,25.4]
[1764090132738,3.15,135.99,135.93,6.625]
[1764090133037,3.15,135.99,135.88,103.098]
[1764090133330,3.15,135.99,135.89,25.4]
[1764090133733,3.20083378,135.95,135.93,0.04943045]
[1764090133934,3.20000144,135.95,135.93,0.04943045]
[1764090138027,0.05000144,135.95,135.93,0.04943045]
[1764090138229,0.05000144,135.95,135.93,25.42943045]
[1764090139540,0.05000144,135.95,135.93,32.05473045]
[1764090141942,0.05000144,135.95,135.93,43.32336544]
[1764090142144,3.19,136.01,135.95,103.0466]
[1764090142327,3.19,136.01,135.93,139.70553499]
[1764090142528,3.19,136.01,135.97,6.6233]
[1764090142934,3.19,136.01,135.95,103.0477]
[1764090143135,0.05066395,135.99,135.97,0.05555724]
[1764090144340,0.05066395,135.99,135.97,6.67895724]
[1764090146046,0.05066395,135.99,135.97,32.05895724]
[1764090147745,0.05066395,135.99,135.97,6.67895724]
[1764090148044,0.05066395,135.99,135.97,32.05895724]
[1764090151039,0.05066395,135.99,135.98,25.36]
[1764090153448,3.19,136.07,136.03,6.6205]
[1764090153654,3.19,136.07,136.04,25.36]
[1764090153852,9.8076,136.1,136.03,25.36]
[1764090154150,3.19,136.13,136.06,102.964]
[1764090154353,3.19,136.16,136.08,102.9485]
[1764090154545,0.04944429,136.13,136.11,0.05298585]
[1764090154745,3.23944429,136.13,136.11,0.05298585]
[1764090157065,0.04944429,136.13,136.11,6.66958585]
[1764090157560,0.04944429,136.13,136.11,32.02958585]
[1764090160252,3.19,136.19,136.14,102.9034]
[1764090160449,25.36,136.23,136.16,102.8877]
[1764090160650,3.19,136.22,136.16,102.8877]
[1764090161054,3.19,136.22,136.19,102.8661]
[1764090161258,3.19,136.25,136.18,134.70628026]
[1764090161461,0.046581,136.22,136.19,0.04971668]
[1764090161766,0.046581,136.22,136.19,6.66221668]
[1764090162664,3.236581,136.22,136.19,0.04971668]
[1764090172265,9.847981,136.22,136.19,0.04971668]
[1764090172469,3.02,136.21,136.19,0.04971668]
[1764090173873,3.02,136.21,136.13,6.47328026]
[1764090174876,102.8393,136.23,136.16,0.0548434]
[1764090174877,3.02,136.17,136.16,0.0548434]
[1764090177480,3.02,136.17,136.08,102.9486]
[1764090177669,3.02,136.17,136.11,6.6166]
[1764090178566,3.07136553,136.15,136.13,0.05271822]
[1764090178877,3.06952385,136.15,136.13,0.05271822]
[1764090179082,2.96952385,136.15,136.13,0.05271822]
[1764090180672,2.96952385,136.15,136.05,6.47328026]
[1764090180881,2.92,136.14,136.05,6.47328026]
[1764090181176,2.92,136.14,136.06,102.9644]
[1764090181482,2.92,136.14,136.08,6.47328026]
[1764090181687,0.04634933,136.12,136.1,0.05583287]
[1764090181981,0.05039516,136.12,136.1,0.0481213]
[1764090183289,102.8551,136.21,136.1,0.0481213]
[1764090183290,2.92,136.24,136.18,6.6132]
[1764090183581,2.92,136.24,136.15,25.32]
[1764090183786,2.92,136.24,136.17,6.47328026]
[1764090184185,0.05112769,136.22,136.19,6.66586296]
[1764090184684,2.97112769,136.22,136.19,0.05316296]
[1764090186984,2.92,136.21,136.19,0.05316296]
[1764090188585,9.5319,136.21,136.19,0.05316296]
[1764090188775,2.92,136.2,136.19,0.05316296]
[1764090190374,2.92,136.2,136.11,31.79328026]
[1764090190375,2.92,136.19,136.11,31.79328026]
[1764090190575,2.92,136.19,136.11,6.47328026]
[1764090191279,2.92,136.19,136.14,0.05601384]
[1764090191479,0.05250717,136.16,136.14,0.05601384]
[1764090192082,2.92,136.22,136.14,6.5292941]
[1764090192691,2.92,136.21,136.15,6.6145]
[1764090192892,2.92,136.21,136.1,31.79328026]
[1764090193089,2.92,136.18,136.14,0.04981679]
[1764090193281,2.97028977,136.17,136.14,0.04981679]
[1764090195792,9.58418977,136.17,136.14,0.04981679]
[1764090195989,0.05028977,136.17,136.14,0.04981679]
[1764090196692,0.05028977,136.17,136.14,6.66491679]
[1764090196992,0.05028977,136.17,136.14,0.04981679]
[1764090198291,3.21028977,136.17,136.14,0.04981679]
[1764090198896,3.16,136.13,136.06,6.47328026]
[1764090199084,3.16,136.13,136.03,134.77688026]
[1764090199393,3.16,136.07,136.01,6.6214]
[1764090199593,3.16,136.07,135.98,191.1222]
[1764090199594,3.16,136.07,135.98,88.1]
[1764090199795,0.05081295,136.04,136.01,0.05099588]
[1764090200697,0.05081295,136.04,136.02,6.6209]
[1764090201301,3.16,136.1,136.02,102.9944]
[1764090201593,3.16,136.1,136.03,6.47328026]
[1764090201989,3.16,136.1,136.05,6.6194]
[1764090202392,0.05434314,136.09,136.06,0.05287615]
[1764090202691,0.05434314,136.09,136.06,6.67177615]
[1764090204296,0.05434314,136.09,136.07,6.6184]
[1764090204702,3.16,136.13,136.06,109.48745641]
[1764090204905,3.16,136.13,136.09,6.6174]
[1764090205897,0.04853365,136.12,136.1,0.05626309]
[1764090207702,3.20853365,136.12,136.1,0.05626309]
[1764090208295,0.04853365,136.12,136.1,0.05626309]
[1764090209103,3.20853365,136.12,136.06,6.47328026]
[1764090209294,3.20853365,136.12,136.03,6.47328026]
[1764090209600,3.16,136.12,136.03,6.47328026]
[1764090209903,3.16,136.11,136.03,6.47328026]
[1764090210291,3.21195172,136.08,136.06,0.05638113]
[1764090213000,3.21195172,136.08,135.98,6.47328026]
[1764090213304,3.16,136.08,135.98,6.47328026]
[1764090213503,102.9372,136.1,135.98,6.47328026]
[1764090213504,3.16,136.06,136.0,6.6218]
[1764090214106,3.16,136.03,136.02,0.04666374]
[1764090215007,0.04718878,136.04,136.02,0.04666374]
[1764090216399,3.20718878,136.04,136.02,0.04666374]
[1764090218605,0.04718878,136.04,136.02,6.66766374]
[1764090218805,0.04718878,136.04,136.02,0.04666374]
[1764090220402,0.04718878,136.04,136.02,6.66756374]
[1764090221611,0.04718878,136.04,136.02,0.04666374]
[1764090221995,3.20718878,136.04,136.02,0.04666374]
[1764090222813,0.04718878,136.04,136.02,0.04666374]
[1764090223210,0.04718878,136.04,136.02,6.66756374]
[1764090227005,3.20718878,136.04,136.02,0.04666374]
[1764090228610,0.04718878,136.04,136.02,0.04666374]
[1764090228815,3.05718878,136.04,136.02,0.04666374]
[1764090229414,0.04718878,136.04,136.02,6.66756374]
[1764090231612,3.05718878,136.04,136.02,0.04666374]
[1764090233510,3.05718878,136.04,135.92,25.36]
[1764090233710,3.01,136.04,135.92,128.4275]
[1764090233910,3.01,136.03,135.95,103.0479]
[1764090234105,3.01,136.03,135.96,103.04]
[1764090234512,0.05100192,136.01,135.98,0.04077173]
[1764090235420,3.06100192,136.01,135.98,0.04077173]
[1764090242126,0.05100192,136.01,135.98,0.04077173]
[1764090242324,3.10100192,136.01,135.98,0.04077173]
[1764090243425,3.10100192,136.01,135.89,11.29020637]
[1764090243626,3.05,135.97,135.88,25.34]
[1764090243828,3.05,135.97,135.89,103.0925]
[1764090244033,3.05,135.97,135.88,128.4381]
[1764090244236,0.05370229,135.94,135.88,128.4381]
[1764090244431,0.05370229,135.94,135.92,6.6259]
[1764090246739,0.05370229,135.94,135.9,6.6265]
[1764090246934,3.10370229,135.94,135.88,25.34]
[1764090247838,3.10370229,135.94,135.87,124.91316274]
[1764090248040,3.10370229,135.94,135.9,6.6269]
[1764090248546,3.10370229,135.94,135.87,47.14826274]
[1764090249143,3.05,135.93,135.89,6.6273]
[1764090249344,3.05,135.93,135.87,47.14826274]
[1764090249653,3.05,135.93,135.87,25.34]
[1764090250140,0.05370229,135.94,135.87,128.4443]
[1764090250339,0.05370229,135.94,135.89,11.29020637]
[1764090250542,0.05370229,135.94,135.88,103.1008]
[1764090250748,0.05370229,135.94,135.88,11.29020637]
[1764090251544,0.05370229,135.94,135.88,114.38610637]
[1764090252335,0.05370229,135.94,135.91,6.6263]
[1764090253148,0.05370229,135.94,135.92,31.9658]
[1764090255145,0.05370229,135.94,135.92,25.34]
[1764090255852,0.05370229,135.94,135.88,114.38610637]
[1764090256156,0.05370229,135.94,135.88,11.29020637]
[1764090256347,0.05370229,135.94,135.89,25.34]
[1764090256546,3.10370229,135.94,135.89,25.34]
[1764090257351,3.10370229,135.94,135.9,6.6267]
[1764090257853,0.05370229,135.94,135.91,6.6263]
[1764090258052,0.05370229,135.94,135.89,25.34]
[1764090258352,3.19370229,135.94,135.89,25.34]
[1764090258550,3.19370229,135.94,135.85,11.29020637]
[1764090258739,3.19049818,135.91,135.83,11.29020637]
[1764090258939,3.19049818,135.91,135.82,25.34]
[1764090259144,125.1135,135.96,135.82,31.9708]
[1764090259145,3.19349923,135.88,135.82,31.9708]
[1764090259539,3.19349923,135.88,135.8,11.29020637]
[1764090259540,3.19349923,135.88,135.81,25.34]
[1764090260446,3.19349923,135.88,135.83,6.6302]
[1764090261545,0.05349923,135.88,135.83,103.139]
[1764090262456,0.05349923,135.88,135.85,6.629]
[1764090263059,0.05349923,135.88,135.83,103.139]
[1764090263253,0.05349923,135.88,135.86,6.6288]
[1764090263652,0.05349923,135.88,135.86,31.9688]
[1764090265561,0.05349923,135.88,135.86,6.6288]
[1764090265756,3.19349923,135.88,135.86,6.6288]
[1764090266060,0.05349923,135.88,135.86,6.6288]
[1764090269452,3.19349923,135.88,135.86,6.6288]
[1764090270768,0.05349923,135.88,135.86,6.6288]
[1764090271658,0.05349923,135.88,135.85,6.6293]
[1764090271865,3.19349923,135.88,135.81,25.34]
[1764090272276,3.19349923,135.88,135.82,6.6308]
[1764090272653,3.19349923,135.88,135.81,25.34]
[1764090272863,3.19349923,135.88,135.83,6.6303]
[1764090273168,6.6265,135.91,135.83,6.6303]
[1764090273169,3.19154331,135.87,135.83,6.6303]
[1764090273968,3.19154331,135.87,135.78,114.46300637]
[1764090273969,3.19154331,135.87,135.78,11.29020637]
[1764090274169,3.19160918,135.84,135.79,25.34]
[1764090274364,0.05160918,135.84,135.79,25.34]
[1764090274568,0.05160918,135.84,135.8,103.1617]
[1764090274864,0.05160918,135.84,135.81,103.1527]
[1764090275365,3.14,135.91,135.83,103.1389]
[1764090275662,3.14,135.91,135.83,128.4989]
[1764090275855,3.14,135.91,135.86,6.6288]
[1764090276259,3.14,135.89,135.82,25.36]
[1764090276463,3.14,135.89,135.82,31.9907]
[1764090276861,3.14,135.89,135.83,6.6302]
[1764090277366,0.05444097,135.87,135.82,25.36]
[1764090277769,0.05444097,135.87,135.84,6.6298]
[1764090278270,3.19444097,135.87,135.82,25.36]
[1764090278471,3.19444097,135.87,135.82,6.6304]
[1764090279167,3.19444097,135.87,135.8,6.6315]
[1764090279368,3.19444097,135.87,135.79,31.86120173]
[1764090279665,3.14,135.85,135.79,13.13310173]
[1764090279866,0.0544819,135.83,135.79,38.49310173]
[1764090280171,3.1944819,135.83,135.77,6.6329]
[1764090280372,0.05033135,135.81,135.77,6.6329]
[1764090280570,3.19033135,135.81,135.77,6.6329]
[1764090281868,3.19033135,135.81,135.75,25.36]
[1764090282162,3.19033135,135.81,135.74,135.06700173]
[1764090282360,3.19033135,135.81,135.77,6.6332]
[1764090282766,3.19033135,135.81,135.74,31.86120173]
[1764090282967,3.19033135,135.81,135.76,6.6337]
[1764090283168,3.19033135,135.81,135.74,6.50120173]
[1764090283568,9.82173135,135.81,135.75,6.6342]
[1764090283866,3.19033135,135.81,135.74,109.70570173]
[1764090284267,0.05033135,135.81,135.76,103.1909]
[1764090284570,0.05033135,135.81,135.77,103.1846]
[1764090284772,0.05033135,135.81,135.79,6.6322]
[1764090287276,0.05033135,135.81,135.72,204.82484602]
[1764090287277,3.09033135,135.81,135.72,204.82484602]
[1764090287476,0.05289626,135.78,135.73,31.86120173]
[1764090287774,0.05289626,135.78,135.75,6.6342]
[1764090287971,0.05289626,135.78,135.73,31.86120173]
[1764090288375,0.05289626,135.78,135.76,6.6336]
[1764090289768,0.05289626,135.78,135.74,25.36]
[1764090289769,3.09289626,135.78,135.74,6.6346]
[1764090289964,3.09289626,135.78,135.72,207.80189112]
[1764090290781,3.09289626,135.78,135.73,6.635]
[1764090291275,9.72579626,135.78,135.72,6.6356]
[1764090294279,3.04,135.77,135.72,6.6356]
[1764090295173,9.6734,135.77,135.7,31.9962]
[1764090295477,0.05166629,135.75,135.7,25.36]
[1764090295779,0.05166629,135.75,135.72,6.6357]
[1764090296574,0.05166629,135.75,135.73,2.73427198]
[1764090296775,3.09166629,135.75,135.73,2.73427198]
[1764090297079,3.09166629,135.75,135.71,2.73427198]
[1764090298672,3.09166629,135.75,135.72,6.6357]
[1764090299485,3.09166629,135.75,135.72,2.73427198]
[1764090299779,3.09166629,135.75,135.69,25.36]
[1764090299970,3.09166629,135.75,135.71,2.73427198]
[1764090300377,0.05166629,135.75,135.73,2.73427198]